fUST/lending_fUST_20250716
["ID","MTS","AMOUNT","RATE_DAILY","PERIOD"]
[372550541,1752679869769,-431.881165,0.00024109,7]
[372550542,1752679869779,-151.0,0.00024109,7]
[372550543,1752679869788,-431.881165,0.00024109,7]
[372550544,1752679869798,-161.343582,0.00024109,7]
[372550545,1752679869807,-460.0,0.00024109,2]
[372550546,1752679869817,-617.79,0.00024109,2]
[372550547,1752679869827,-460.0,0.00024109,2]
[372550548,1752679869836,-200.0,0.00024109,2]
[372550549,1752679869846,-561.35,0.00024109,2]
[372550550,1752679869856,-466.62,0.00024109,2]
[372550551,1752679869866,-779.28,0.00024109,2]
[372550552,1752679869876,-460.0,0.00024109,2]
[372550553,1752679869886,-460.0,0.00024109,2]
[372550554,1752679869896,-939.24,0.00024109,2]
[372550555,1752679869907,-1185.85,0.00024109,2]
[372550556,1752679869916,-234.803274,0.00024109,7]
[372550557,1752679869927,-234.803274,0.00024109,7]
[372550558,1752679869936,-1429.97,0.00024109,2]
[372550559,1752679869946,-987.04,0.00024109,2]
[372550560,1752679869955,-844.39,0.00024109,2]
[372550561,1752679869967,-594.46,0.00024109,2]
[372550562,1752679869976,-460.0,0.00024109,2]
[372550563,1752679869986,-5117.18,0.00024109,2]
[372550564,1752679869995,-778.65,0.00024109,2]
[372550565,1752679870005,-471.95,0.00024109,2]
[372550566,1752679870014,-10006.83,0.00024109,2]
[372550567,1752679870025,-506.45,0.00024109,2]
[372550568,1752679870034,-2438.56,0.00024109,2]
[372550569,1752679870044,-687.27,0.00024109,2]
[372550570,1752679870053,-639.69,0.00024109,2]
[372550571,1752679870063,-521.65,0.00024109,2]
[372550572,1752679870072,-4147.13,0.00024109,2]
[372550573,1752679870082,-460.0,0.00024109,2]
[372550574,1752679870092,-6962.62,0.00024109,2]
[372550575,1752679870101,-959.76,0.00024109,2]
[372550576,1752679870110,-2589.89,0.00024109,2]
[372550577,1752679870120,-3564.08,0.00024109,2]
[372550578,1752679870130,-1879.23,0.00024109,2]
[372550579,1752679870140,-1196.19,0.00024109,2]
[372550580,1752679870149,-13889.83,0.00024109,2]
[372550581,1752679870159,-2089.21,0.00024109,2]
[372550582,1752679870168,-460.0,0.00024109,2]
[372550583,1752679870178,-864.03,0.00024109,2]
[372550584,1752679870189,-464.03,0.00024109,2]
[372550585,1752679870198,-460.0,0.00024109,2]
[372550586,1752679870208,-942.0,0.00024109,2]
[372550587,1752679870223,-1156.65,0.00024109,2]
[372550588,1752679870232,-564.35,0.00024109,2]
[372550589,1752679870243,-5710.44,0.00024109,2]
[372550590,1752679870252,-9435.4,0.00024109,2]
[372550591,1752679870262,-460.0,0.00024109,2]
[372550592,1752679870272,-1063.71,0.00024109,2]
[372550593,1752679870281,-4062.86,0.00024109,2]
[372550594,1752679870290,-1067.68,0.00024109,2]
[372550595,1752679870299,-801.73,0.00024109,2]
[372550596,1752679870308,-1081.66,0.00024109,2]
[372550597,1752679870318,-801.73,0.00024109,2]
[372550598,1752679870328,-652.86,0.00024109,2]
[372550599,1752679870338,-662.38,0.00024109,2]
[372550600,1752679870348,-1058.85,0.00024109,2]
[372550601,1752679870358,-917.58,0.00024109,2]
[372550602,1752679870367,-4731.5,0.00024109,2]
[372550603,1752679870377,-5295.6,0.00024109,2]
[372550604,1752679870386,-3263.9,0.00024109,2]
[372550605,1752679870396,-2186.29,0.00024109,2]
[372550606,1752679870405,-1895.02,0.00024109,2]
[372550607,1752679870415,-5028.57,0.00024109,2]
[372550608,1752679870425,-582.88,0.00024109,2]
[372550609,1752679870435,-460.0,0.00024109,2]
[372550610,1752679870444,-469.31,0.00024109,2]
[372550611,1752679870454,-1167.8,0.00024109,2]
[372550612,1752679870466,-1440.99,0.00024109,2]
[372550613,1752679870475,-467.63,0.00024109,2]
[372550614,1752679870485,-352.80024,0.0002413,2]
[372550615,1752679870494,-860.0,0.00024145,2]
[372550616,1752679870504,-1374.61804698,0.00024164,2]
[372550617,1752679870514,-160.0,0.000242,7]
[372550618,1752679870524,-160.0,0.000242,7]
[372550619,1752679870534,-298.9,0.00024237,6]
[372550620,1752679870544,-9021.18677679,0.00024245,10]
[372550621,1752679870554,-160.0,0.00024252,10]
[372550622,1752679870563,-168.0,0.0002428,2]
[372550623,1752679870573,-200.0,0.0002432,10]
[372550624,1752679870582,-159.7314836,0.00024329,2]
[372550625,1752679870592,-333.0781877,0.00024329,2]
[372550626,1752679870602,-438.4391079,0.00024329,2]
[372550627,1752679870611,-355.9262789,0.00024329,2]
[372550628,1752679870621,-450.0,0.00024371,2]
[372550629,1752679870631,-450.0,0.00024371,2]
[372550630,1752679870641,-2763.46229755,0.00024372,2]
[372550631,1752679870650,-151.0,0.00024383,7]
[372550632,1752679870660,-460.0,0.00024383,2]
[372550633,1752679870670,-617.79,0.00024383,2]
[372550634,1752679870679,-460.0,0.00024383,2]
[372550635,1752679870692,-200.0,0.00024383,2]
[372550636,1752679870701,-561.35,0.00024383,2]
[372550637,1752679870711,-466.62,0.00024383,2]
[372550638,1752679870728,-779.28,0.00024383,2]
[372550639,1752679870739,-604.19069426,0.00024383,2]
[372550640,1752679870749,-460.0,0.00024383,2]
[372550641,1752679870758,-939.24,0.00024383,2]
[372550642,1752679870770,-1185.85,0.00024383,2]
[372550643,1752679870780,-1429.97,0.00024383,2]
[372550644,1752679870790,-987.04,0.00024383,2]
[372550645,1752679870799,-844.39,0.00024383,2]
[372550646,1752679870809,-594.46,0.00024383,2]
[372550647,1752679870819,-460.0,0.00024383,2]
[372550648,1752679870828,-5117.18,0.00024383,2]
[372550649,1752679870838,-778.65,0.00024383,2]
[372550650,1752679870848,-471.95,0.00024383,2]
[372550651,1752679870858,-10006.83,0.00024383,2]
[372550652,1752679870868,-506.45,0.00024383,2]
[372550653,1752679870877,-2438.56,0.00024383,2]
[372550654,1752679870887,-687.27,0.00024383,2]
[372550655,1752679870896,-639.69,0.00024383,2]
[372550656,1752679870906,-521.65,0.00024383,2]
[372550657,1752679870916,-4147.13,0.00024383,2]
[372550658,1752679870926,-460.0,0.00024383,2]
[372550659,1752679870935,-6962.62,0.00024383,2]
[372550660,1752679870945,-959.76,0.00024383,2]
[372550661,1752679870954,-2589.89,0.00024383,2]
[372550662,1752679870965,-3564.08,0.00024383,2]
[372550663,1752679870976,-1879.23,0.00024383,2]
[372550664,1752679870986,-1196.19,0.00024383,2]
[372550665,1752679870996,-13889.83,0.00024383,2]
[372550666,1752679871005,-2089.21,0.00024383,2]
[372550667,1752679871015,-460.0,0.00024383,2]
[372550668,1752679871024,-864.03,0.00024383,2]
[372550669,1752679871034,-464.03,0.00024383,2]
[372550670,1752679871044,-460.0,0.00024383,2]
[372550671,1752679871053,-942.0,0.00024383,2]
[372550672,1752679871063,-1156.65,0.00024383,2]
[372550673,1752679871073,-564.35,0.00024383,2]
[372550674,1752679871084,-5710.44,0.00024383,2]
[372550675,1752679871093,-9435.4,0.00024383,2]
[372550676,1752679871104,-460.0,0.00024383,2]
[372550677,1752679871114,-1063.71,0.00024383,2]
[372550678,1752679871124,-4062.86,0.00024383,2]
[372550679,1752679871134,-1067.68,0.00024383,2]
[372550680,1752679871143,-801.73,0.00024383,2]
[372550681,1752679871153,-1081.66,0.00024383,2]
[372550682,1752679871162,-801.73,0.00024383,2]
[372550683,1752679871172,-652.86,0.00024383,2]
[372550684,1752679871304,-662.38,0.00024383,2]
[372550685,1752679871315,-1058.85,0.00024383,2]
[372550686,1752679871325,-917.58,0.00024383,2]
[372550687,1752679871335,-4731.5,0.00024383,2]
[372550688,1752679871345,-5295.6,0.00024383,2]
[372550689,1752679871355,-3263.9,0.00024383,2]
[372550690,1752679871364,-2186.29,0.00024383,2]
[372550691,1752679871374,-1895.02,0.00024383,2]
[372550692,1752679871384,-5028.57,0.00024383,2]
[372550693,1752679871394,-582.88,0.00024383,2]
[372550694,1752679871403,-469.31,0.00024383,2]
[372550695,1752679871413,-1167.8,0.00024383,2]
[372550696,1752679871423,-1440.99,0.00024383,2]
[372550697,1752679871432,-467.63,0.00024383,2]
[372550698,1752679871442,-360.683163,0.0002439,7]
[372550699,1752679871452,-2763.46229755,0.00024441,2]
[372550700,1752679871462,-9021.18677679,0.00024452,11]
[372550701,1752679871474,-360.683163,0.00024459,10]
[372550702,1752679871484,-4330.86530472,0.00024464,2]
[372550703,1752679871494,-749.47988119,0.000245,3]
[372550704,1752679871504,-5888.0,0.00024546,2]
[372550705,1752679871514,-4000.0,0.00024553,4]
[372550706,1752679871524,-823.0,0.00024561,2]
[372550707,1752679871534,-168.0,0.00024584,2]
[372550708,1752679871544,-298.9,0.00024602,6]
[372550709,1752679871553,-5888.0,0.00024637,2]
[372550710,1752679871564,-68235.13315208,0.0002465,2]
[372550711,1752679871574,-458.715857,0.0002465,7]
[372550712,1752679871584,-458.715857,0.0002465,7]
[372550713,1752679871593,-225.537329,0.0002465,7]
[372550714,1752679871603,-225.537329,0.0002465,7]
[372550715,1752679871613,-460.0,0.00024657,2]
[372550716,1752679871623,-617.79,0.00024657,2]
[372550717,1752679871632,-460.0,0.00024657,2]
[372550718,1752679871642,-200.0,0.00024657,2]
[372550719,1752679871652,-350.27166094,0.00024657,2]
[372550720,1752679871662,-561.35,0.00024657,2]
[372550721,1752679871671,-466.62,0.00024657,2]
[372550722,1752679871683,-779.28,0.00024657,2]
[372550723,1752679871693,-460.0,0.00024657,2]
[372550724,1752679871703,-939.24,0.00024657,2]
[372550725,1752679871715,-1185.85,0.00024657,2]
[372550726,1752679871725,-1429.97,0.00024657,2]
[372550727,1752679871734,-987.04,0.00024657,2]
[372550728,1752679871744,-844.39,0.00024657,2]
[372550729,1752679871754,-594.46,0.00024657,2]
[372550730,1752679871763,-426.50716651,0.00024657,2]
[372550731,1752679871773,-5117.18,0.00024657,2]
[372550732,1752679871783,-778.65,0.00024657,2]
[372550733,1752679871792,-471.95,0.00024657,2]
[372550734,1752679871802,-10006.83,0.00024657,2]
[372550735,1752679871812,-506.45,0.00024657,2]
[372550736,1752679871822,-687.27,0.00024657,2]
[372550737,1752679871831,-2438.56,0.00024657,2]
[372550738,1752679871841,-639.69,0.00024657,2]
[372550739,1752679871850,-521.65,0.00024657,2]
[372550740,1752679871859,-4147.13,0.00024657,2]
[372550741,1752679871869,-460.0,0.00024657,2]
[372550742,1752679871878,-6962.62,0.00024657,2]
[372550743,1752679871888,-959.76,0.00024657,2]
[372550744,1752679871898,-2589.89,0.00024657,2]
[372550745,1752679871907,-3564.08,0.00024657,2]
[372550746,1752679871919,-1879.23,0.00024657,2]
[372550747,1752679871929,-1196.19,0.00024657,2]
[372550748,1752679871939,-2089.21,0.00024657,2]
[372550749,1752679871949,-13889.83,0.00024657,2]
[372550750,1752679871958,-460.0,0.00024657,2]
[372550751,1752679871972,-864.03,0.00024657,2]
[372550752,1752679871981,-464.03,0.00024657,2]
[372550753,1752679871991,-606.35579261,0.00024657,2]
[372550754,1752679872001,-942.0,0.00024657,2]
[372550755,1752679872011,-1156.65,0.00024657,2]
[372550756,1752679872021,-564.35,0.00024657,2]
[372550757,1752679872031,-5710.44,0.00024657,2]
[372550758,1752679872042,-9435.4,0.00024657,2]
[372550759,1752679872052,-442.53946243,0.00024657,2]
[372550760,1752679872062,-1063.71,0.00024657,2]
[372550761,1752679872071,-4062.86,0.00024657,2]
[372550762,1752679872081,-1067.68,0.00024657,2]
[372550763,1752679872091,-801.73,0.00024657,2]
[372550764,1752679872101,-1081.66,0.00024657,2]
[372550765,1752679872110,-801.73,0.00024657,2]
[372550766,1752679872120,-652.86,0.00024657,2]
[372550767,1752679872130,-662.38,0.00024657,2]
[372550768,1752679872140,-1058.85,0.00024657,2]
[372550769,1752679872151,-917.58,0.00024657,2]
[372550770,1752679872160,-4731.5,0.00024657,2]
[372550771,1752679872170,-5295.6,0.00024657,2]
[372550772,1752679872180,-3263.9,0.00024657,2]
[372550773,1752679872189,-2186.29,0.00024657,2]
[372550774,1752679872199,-1895.02,0.00024657,2]
[372550775,1752679872208,-5028.57,0.00024657,2]
[372550776,1752679872220,-582.88,0.00024657,2]
[372550777,1752679872230,-469.31,0.00024657,2]
[372550778,1752679872239,-1167.8,0.00024657,2]
[372550779,1752679872249,-1440.99,0.00024657,2]
[372550780,1752679872259,-467.63,0.00024657,2]
[372550781,1752679872269,-285.7056492,0.00024658,2]
[372550782,1752679872279,-500.0,0.00024658,2]
[372550783,1752679872289,-151.0,0.00024658,2]
[372550784,1752679872298,-151.0,0.00024658,2]
[372550785,1752679872308,-151.0,0.00024658,2]
[372550786,1752679872318,-500.0,0.00024658,2]
[372550787,1752679872327,-151.0,0.00024658,2]
[372550788,1752679872337,-151.0,0.00024658,2]
[372550789,1752679872347,-500.0,0.00024658,2]
[372550790,1752679872358,-500.0,0.00024658,2]
[372550791,1752679872368,-500.0,0.00024658,2]
[372550792,1752679872379,-500.0,0.00024658,2]
[372550793,1752679872390,-151.0,0.00024658,2]
[372550794,1752679872400,-500.0,0.00024658,2]
[372550795,1752679872411,-257.47516588,0.00024658,2]
[372550796,1752679872420,-1734.0,0.00024658,2]
[372550797,1752679872430,-500.0,0.00024658,2]
[372550798,1752679872440,-500.0,0.00024658,2]
[372550799,1752679872450,-500.0,0.00024658,2]
[372550800,1752679872460,-151.0,0.00024658,2]
[372550801,1752679872474,-151.0,0.00024658,2]
[372550802,1752679872483,-200.52802804,0.00024658,2]
[372550803,1752679872494,-281.06246776,0.00024658,2]
[372550804,1752679872504,-500.0,0.00024658,2]
[372550805,1752679872513,-151.0,0.00024658,2]
[372550806,1752679872524,-500.0,0.00024658,2]
[372550807,1752679872534,-151.0,0.00024658,2]
[372550808,1752679872544,-151.0,0.00024658,2]
[372550809,1752679872554,-151.0,0.00024658,2]
[372550810,1752679872565,-151.0,0.00024658,2]
[372550811,1752679872576,-500.0,0.00024658,2]
[372550812,1752679872586,-9021.18677679,0.00024659,11]
[372550813,1752679872597,-603.10873398,0.0002467,2]
[372550814,1752679872607,-960.0,0.00024693,2]
[372550815,1752679872617,-1535.37,0.000247,2]
[372550816,1752679872627,-160.0,0.00024701,11]
[372550817,1752679872637,-150.6881,0.00024715,2]
[372550818,1752679872647,-5000.0,0.000248,4]
[372550819,1752679872656,-151.0,0.000248,7]
[372550820,1752679872666,-151.0,0.000248,7]
[372550821,1752679872675,-151.0,0.000248,7]
[372550822,1752679872686,-151.0,0.000248,7]
[372550823,1752679872700,-151.0,0.000248,7]
[372550824,1752679872710,-390.626669,0.000248,7]
[372550825,1752679872722,-390.626669,0.000248,7]
[372550826,1752679872732,-1376.785756,0.000248,7]
[372550827,1752679872742,-1376.785756,0.000248,7]
[372550828,1752679872751,-360.683163,0.0002483,2]
[372550829,1752679872761,-310.29194423,0.00024839,2]
[372550830,1752679872774,-9021.18677679,0.00024866,12]
[372550831,1752679872784,-500.0,0.00024869,10]
[372550832,1752679872794,-924189.59773154,0.0002487,4]
[372550833,1752679872804,-151.0,0.0002487,3]
[372550834,1752679872813,-151.0,0.0002487,7]
[372550835,1752679872823,-151.0,0.0002487,7]
[372550836,1752679872833,-151.0,0.0002487,7]
[372550837,1752679872843,-151.0,0.0002487,7]
[372550838,1752679872853,-151.0,0.0002487,7]
[372550839,1752679872863,-151.0,0.0002487,7]
[372550840,1752679872872,-151.0,0.0002487,7]
[372550841,1752679872882,-151.0,0.0002487,7]
[372550842,1752679872892,-151.0,0.0002487,7]
[372550843,1752679872902,-727.733832,0.0002487,7]
[372550844,1752679872912,-727.733832,0.0002487,7]
[372550845,1752679872922,-431.881165,0.0002487,7]
[372550846,1752679872931,-151.0,0.0002487,7]
[372550847,1752679872941,-431.881165,0.0002487,7]
[372550848,1752679872950,-151.0,0.0002487,7]
[372550849,1752679872961,-500.0,0.0002487,4]
[372550850,1752679872973,-501.76217352,0.0002487,4]
[372550851,1752679872982,-500.0,0.0002487,4]
[372550852,1752679872992,-500.0,0.0002487,4]
[372550853,1752679873002,-500.0,0.0002487,4]
[372550854,1752679873012,-500.0,0.0002487,4]
[372550855,1752679873021,-500.0,0.0002487,4]
[372550856,1752679873031,-164.26806508,0.0002487,4]
[372550857,1752679873042,-505.51862251,0.0002487,4]
[372550858,1752679873052,-151.0,0.0002487,7]
[372550859,1752679873061,-151.0,0.0002487,7]
[372550860,1752679873071,-238.780174,0.0002487,7]
[372550861,1752679873081,-152.012581,0.0002487,7]
[372550862,1752679873090,-251.255094,0.0002487,7]
[372550863,1752679873100,-251.255094,0.0002487,7]
[372550864,1752679873109,-151.0,0.0002487,7]
[372550865,1752679873119,-151.0,0.0002487,7]
[372550866,1752679873128,-590.117061,0.0002487,7]
[372550867,1752679873138,-590.117061,0.0002487,7]
[372550868,1752679873147,-151.0,0.0002487,7]
[372550869,1752679873158,-151.0,0.0002487,7]
[372550870,1752679873167,-217.523133,0.0002487,7]
[372550871,1752679873178,-151.0,0.0002487,7]
[372550872,1752679873188,-217.523133,0.0002487,7]
[372550873,1752679873199,-151.0,0.0002487,7]
[372550874,1752679873209,-151.0,0.0002487,7]
[372550875,1752679873222,-151.0,0.0002487,7]
[372550876,1752679873233,-151.0,0.0002487,7]
[372550877,1752679873242,-151.0,0.0002487,7]
[372550878,1752679873252,-390.626669,0.0002487,7]
[372550879,1752679873262,-390.626669,0.0002487,7]
[372550880,1752679873271,-573.17101,0.0002487,7]
[372550881,1752679873281,-573.17101,0.0002487,7]
[372550882,1752679873291,-234.803274,0.0002487,7]
[372550883,1752679873300,-234.803274,0.0002487,7]
[372550884,1752679873310,-151.0,0.0002487,7]
[372550885,1752679873320,-31914.51625592,0.0002487,4]
[372550886,1752679873330,-156.811072,0.0002487,7]
[372550887,1752679873340,-151.0,0.0002487,7]
[372550888,1752679873350,-156.811072,0.0002487,7]
[372550889,1752679873359,-151.0,0.0002487,7]
[372550890,1752679873369,-547.38591,0.0002487,7]
[372550891,1752679873379,-547.38591,0.0002487,7]
[372550892,1752679873389,-1376.785756,0.0002487,7]
[372550893,1752679873398,-1376.785756,0.0002487,7]
[372550894,1752679873408,-151.0,0.0002487,7]
[372550895,1752679873417,-151.0,0.0002487,7]
[372550896,1752679873426,-151.0,0.0002487,7]
[372550897,1752679873436,-202.048446,0.0002487,7]
[372550898,1752679873446,-151.0,0.0002487,7]
[372550899,1752679873456,-202.048446,0.0002487,7]
[372550900,1752679873465,-974.670941,0.0002487,7]
[372550901,1752679873476,-974.670941,0.0002487,7]
[372550902,1752679873487,-576.662623,0.0002487,7]
[372550903,1752679873497,-576.662623,0.0002487,7]
[372550904,1752679873507,-458.715857,0.0002487,7]
[372550905,1752679873516,-522.590694,0.0002487,7]
[372550906,1752679873526,-458.715857,0.0002487,7]
[372550907,1752679873536,-522.590694,0.0002487,7]
[372550908,1752679873547,-225.537329,0.0002487,7]
[372550909,1752679873558,-225.537329,0.0002487,7]
[372550910,1752679873568,-360.683163,0.00024893,14]
[372550911,1752679873579,-500.0,0.00024899,10]
[372550912,1752679873589,-151.0,0.000249,3]
[372550913,1752679873600,-151.0,0.000249,7]
[372550914,1752679873610,-260.785122,0.000249,7]
[372550915,1752679873619,-151.0,0.000249,7]
[372550916,1752679873629,-151.0,0.000249,7]
[372550917,1752679873639,-151.0,0.000249,7]
[372550918,1752679873649,-151.0,0.000249,7]
[372550919,1752679873658,-151.0,0.000249,7]
[372550920,1752679873668,-151.0,0.000249,7]
[372550921,1752679873678,-727.733832,0.000249,7]
[372550922,1752679873692,-727.733832,0.000249,7]
[372550923,1752679873702,-431.881165,0.000249,7]
[372550924,1752679873711,-431.881165,0.000249,7]
[372550925,1752679873723,-151.0,0.000249,7]
[372550926,1752679873734,-151.0,0.000249,7]
[372550927,1752679873743,-151.0,0.000249,7]
[372550928,1752679873753,-151.0,0.000249,7]
[372550929,1752679873764,-801.383055,0.000249,7]
[372550930,1752679873774,-801.383055,0.000249,7]
[372550931,1752679873784,-151.0,0.000249,7]
[372550932,1752679873793,-151.0,0.000249,7]
[372550933,1752679873803,-151.0,0.000249,7]
[372550934,1752679873812,-151.0,0.000249,7]
[372550935,1752679873821,-251.255094,0.000249,7]
[372550936,1752679873831,-251.255094,0.000249,7]
[372550937,1752679873841,-649368.360405,0.000249,2]
[372550938,1752679873850,-2249.9321,0.000249,2]
[372550939,1752679873860,-4330.86530472,0.00024906,2]
[372550940,1752679873869,-450.64634875,0.00024919,2]
[372550941,1752679873879,-460.0,0.00024931,2]
[372550942,1752679873889,-617.79,0.00024931,2]
[372550943,1752679873899,-460.0,0.00024931,2]
[372550944,1752679873908,-307.8493984,0.00024931,2]
[372550945,1752679873918,-561.35,0.00024931,2]
[372550946,1752679873931,-466.62,0.00024931,2]
[372550947,1752679873941,-779.28,0.00024931,2]
[372550948,1752679873953,-460.0,0.00024931,2]
[372550949,1752679873970,-939.24,0.00024931,2]
[372550950,1752679873980,-1185.85,0.00024931,2]
[372550951,1752679873990,-1429.97,0.00024931,2]
[372550952,1752679874000,-987.04,0.00024931,2]
[372550953,1752679874014,-844.39,0.00024931,2]
[372550954,1752679874023,-594.46,0.00024931,2]
[372550955,1752679874034,-5117.18,0.00024931,2]
[372550956,1752679874043,-778.65,0.00024931,2]
[372550957,1752679874054,-471.95,0.00024931,2]
[372550958,1752679874064,-10006.83,0.00024931,2]
[372550959,1752679874076,-506.45,0.00024931,2]
[372550960,1752679874196,-687.27,0.00024931,2]
[372550961,1752679874205,-2438.56,0.00024931,2]
[372550962,1752679874214,-639.69,0.00024931,2]
[372550963,1752679874226,-521.65,0.00024931,2]
[372550964,1752679874234,-4147.13,0.00024931,2]
[372550965,1752679874243,-460.0,0.00024931,2]
[372550966,1752679874251,-6962.62,0.00024931,2]
[372550967,1752679874259,-959.76,0.00024931,2]
[372550968,1752679874269,-2589.89,0.00024931,2]
[372550969,1752679874279,-3564.08,0.00024931,2]
[372550970,1752679874290,-1879.23,0.00024931,2]
[372550971,1752679874300,-1196.19,0.00024931,2]
[372550972,1752679874309,-2089.21,0.00024931,2]
[372550973,1752679874319,-13889.83,0.00024931,2]
[372550974,1752679874329,-500.79,0.00024931,2]
[372550975,1752679874339,-864.03,0.00024931,2]
[372550976,1752679874348,-464.03,0.00024931,2]
[372550977,1752679874358,-942.0,0.00024931,2]
[372550978,1752679874367,-1156.65,0.00024931,2]
[372550979,1752679874377,-564.35,0.00024931,2]
[372550980,1752679874387,-151.0,0.00024931,7]
[372550981,1752679874398,-5710.44,0.00024931,2]
[372550982,1752679874409,-9435.4,0.00024931,2]
[372550983,1752679874420,-1063.71,0.00024931,2]
[372550984,1752679874431,-4062.86,0.00024931,2]
[372550985,1752679874441,-1067.68,0.00024931,2]
[372550986,1752679874452,-801.73,0.00024931,2]
[372550987,1752679874464,-1081.66,0.00024931,2]
[372550988,1752679874486,-576.662623,0.00024931,7]
[372550989,1752679874497,-801.73,0.00024931,2]
[372550990,1752679874509,-576.662623,0.00024931,7]
[372550991,1752679874520,-652.86,0.00024931,2]
[372550992,1752679874531,-662.38,0.00024931,2]
[372550993,1752679874542,-1058.85,0.00024931,2]
[372550994,1752679874554,-917.58,0.00024931,2]
[372550995,1752679874565,-458.715857,0.00024931,7]
[372550996,1752679874577,-4731.5,0.00024931,2]
[372550997,1752679874589,-5295.6,0.00024931,2]
[372550998,1752679874601,-458.715857,0.00024931,7]
[372550999,1752679874612,-3263.9,0.00024931,2]
[372551000,1752679874623,-2186.29,0.00024931,2]
[372551001,1752679874633,-1895.02,0.00024931,2]
[372551002,1752679874644,-5028.57,0.00024931,2]
[372551003,1752679874654,-582.88,0.00024931,2]
[372551004,1752679874665,-469.31,0.00024931,2]
[372551005,1752679874675,-1167.8,0.00024931,2]
[372551006,1752679874687,-1440.99,0.00024931,2]
[372551007,1752679874700,-225.537329,0.00024931,7]
[372551008,1752679874710,-225.537329,0.00024931,7]
[372551009,1752679874728,-467.63,0.00024931,2]
[372551010,1752679874738,-500.0,0.00024932,2]
[372551011,1752679874748,-151.0,0.00024932,2]
[372551012,1752679874758,-198.0,0.00024932,2]
[372551013,1752679874769,-151.0,0.00024932,2]
[372551014,1752679874779,-500.0,0.00024932,2]
[372551015,1752679874789,-151.0,0.00024932,2]
[372551016,1752679874808,-151.0,0.00024932,2]
[372551017,1752679874830,-500.0,0.00024932,2]
[372551018,1752679874840,-500.0,0.00024932,2]
[372551019,1752679874850,-500.0,0.00024932,2]
[372551020,1752679874861,-500.0,0.00024932,2]
[372551021,1752679874872,-151.0,0.00024932,2]
[372551022,1752679874884,-500.0,0.00024932,2]
[372551023,1752679874896,-1734.0,0.00024932,2]
[372551024,1752679874908,-500.0,0.00024932,2]
[372551025,1752679874918,-500.0,0.00024932,2]
[372551026,1752679874929,-500.0,0.00024932,2]
[372551027,1752679874939,-151.0,0.00024932,2]
[372551028,1752679874949,-500.0,0.00024932,2]
[372551029,1752679874959,-151.0,0.00024932,2]
[372551030,1752679874973,-500.0,0.00024932,2]
[372551031,1752679874983,-151.0,0.00024932,2]
[372551032,1752679874993,-275.53793141,0.00024932,2]
[372551033,1752679875003,-151.0,0.00024932,2]
[372551034,1752679875013,-500.0,0.00024932,2]
[372551035,1752679875023,-298.9,0.00024967,7]
[372551036,1752679875032,-2000.0,0.0002499,10]
[372551037,1752679875042,-2000.0,0.0002499,10]
[372551038,1752679875052,-151.0,0.00024998,7]
[372551039,1752679875062,-151.0,0.00024998,7]
[372551040,1752679875072,-590.117061,0.00024998,7]